Cogmind - Beta 14 @@@ ROGUE MODE // 2024.08.17 @ 17:21:29 Player: satan5 Result: Self-destructed Performance ------------- Evolutions (2) 1000 Regions Visited (3) 600 Robots Destroyed (99) 495 Value Destroyed (2481) 2481 Prototype IDs (5) 100 Alien Tech Used (0) 0 Bonus (99) 99 TOTAL SCORE: 4775 Bonus ------- High Alert Combat Kills 99 Cogmind --------- Core Integrity 237/550 Matter 261/300 Energy 100/100 System Corruption 3% Temperature Cool (0) Movement Core (50) Location -8/Materials Parts ------- > --- POWER (1) -------- (None) > --- PROPULSION (4) --- (None) > --- UTILITY (4) ------ Advanced Targeting Computer Hacking Suite Hacking Suite Hacking Suite > --- WEAPON (2) ------- (None) > --- INVENTORY (5) ---- Nuclear Core Improved EM Shotgun Improved EM Shotgun Heavy Particle Cannon Heavy Particle Cannon Peak State ------------ > --- POWER ------------ Nuclear Core > --- PROPULSION ------- Aluminum Leg Aluminum Leg Aluminum Leg Improved Aluminum Leg > --- UTILITY ---------- Large Storage Unit Advanced Targeting Computer Hacking Suite Hacking Suite > --- WEAPON ----------- Advanced Beam Rifle Heavy Assault Rifle > --- INVENTORY -------- Nuclear Core Nuclear Core Improved Terrain Scanner Advanced Targeting Computer Hacking Suite Improved EM Shotgun Improved EM Shotgun Improved EM Shotgun Heavy Particle Gun Heavy Assault Rifle Heavy Assault Rifle Shock Bomb Launcher Hammer [Rating: 27] Favorites ----------- Power Nuclear Core Engine Ion Engine Power Core Nuclear Core Propulsion Aluminum Leg Treads Light Treads Leg Aluminum Leg Utility Large Storage Unit Device Seismic Detector Storage Large Storage Unit Processor Advanced Targeting Computer Hackware Hacking Suite Weapon Heavy Assault Rifle Energy Gun Beam Rifle Energy Cannon Heavy Particle Cannon Ballistic Gun Heavy Assault Rifle Launcher Shock Bomb Launcher Impact Weapon Hammer Build | -11 -10 -9 -8 ------- Run | Yrd Mat Mat Mat Slots Evolved 4 | . . 2 2 Power . | . . . . Propulsion 2 | . . 2 . Utility 2 | . . . 2 Weapon . | . . . . Parts Attached 73 | 6 10 44 13 Power 6 | 1 1 3 1 Engine 4 | 1 1 2 . Core 2 | . . 1 1 Reactor . | . . . . Propulsion 23 | 2 2 19 . Treads 5 | . . 5 . Leg 18 | 2 2 14 . Wheel . | . . . . Hover . | . . . . Flight . | . . . . Utility 8 | 1 2 2 3 Device 1 | . 1 . . Storage 2 | 1 1 . . Processor 1 | . . 1 . Hackware 4 | . . 1 3 Protection . | . . . . Artifact . | . . . . Weapon 36 | 2 5 20 9 Energy Gun 6 | 1 1 2 2 Energy Cannon 2 | . . . 2 Ballistic Gun 19 | 1 3 12 3 Ballistic Cannon . | . . . . Launcher 6 | . 1 3 2 Special Weapon . | . . . . Impact Weapon 3 | . . 3 . Slashing Weapon . | . . . . Piercing Weapon . | . . . . Special Melee Weapon . | . . . . Unidentified Prototypes 5 | . . 3 2 Parts Lost 20 | . . 12 8 Power 1 | . . . 1 Propulsion 11 | . . 7 4 Utility 2 | . . 2 . Weapon 6 | . . 3 3 Highest Loss Streak 6 | . . 4 6 To Critical Strikes . | . . . . Average Slot Usage (%) 94 | . 98 95 83 Engine 4 | . 14 2 . Core 6 | . . 8 7 Treads 12 | . . 16 . Leg 24 | . 28 23 25 Device 2 | . 12 . . Storage 11 | . 14 11 7 Processor 7 | . . 9 9 Hackware 2 | . . . 19 Energy Gun 4 | . 11 3 . Ballistic Gun 15 | . 16 15 9 Impact Weapon 1 | . . 1 . Peak Build Rating 27 | 6 8 20 27 Average Rating 15 | 3 7 16 22 On Entrance 8 | . 6 8 19 Naked Turns . | . . . . Heaviest Build 37 | 14 28 37 36 Greatest Support 60 | 20 20 60 43 Greatest Overweight (x) 3 | 1 1 3 1 Average Overweight (x) . | . . . . Largest Inventory Capacity 15 | 8 15 15 15 Average Capacity 13 | 7 8 15 13 Most Carried 15 | 7 9 15 14 Average Carried 11 | 3 7 13 9 Final Capacity 15 | 8 15 15 5 Final Carried 14 | 4 9 14 5 Class Distribution -------------------- 72% | Scavenger-Mutant 23% | Mutant 4% | Hacker-Mutant Dominant Class ---------------- Scavenger-Mutant | -10/Materials Scavenger-Mutant | -9/Materials Hacker-Mutant | -8/Materials Resources | -11 -10 -9 -8 ----------- Run | Yrd Mat Mat Mat Matter Collected 1694 | 222 275 871 326 Remotely . | . . . . Salvage Created 3419 | 12 598 1813 996 Parts 228 | 4 54 115 55 Haulers Intercepted 8 | . 2 5 1 Recyclers Shooed 2 | . 1 . 1 Parts Field Recycled . | . . . . Retrieved Matter . | . . . . Parts Self-Destructed . | . . . . Prevented . | . . . . Kills | -11 -10 -9 -8 ------- Run | Yrd Mat Mat Mat Combat Hostiles Destroyed 63 | . 15 33 15 Melee 7 | . . 7 . Guns 28 | . 12 13 3 Cannons 2 | . . . 2 AOE 20 | . 3 9 8 Classes Destroyed 14 | 1 6 4 3 Worker 6 | . 1 4 1 Builder 7 | . . 4 3 Tunneler 1 | 1 . . . Hauler 8 | . 2 5 1 Recycler 1 | . . 1 . Mechanic 1 | . . . 1 Operator 4 | . 2 2 . Watcher 8 | . 2 5 1 Swarmer 15 | . 8 7 . Grunt 34 | . 7 15 12 Brawler 1 | . . . 1 Duelist 1 | . . 1 . Sentry 11 | . . 10 1 Hunter 1 | . . . 1 Best Kill Streak 9 | 1 5 9 5 Combat Bots Only 8 | . 3 8 3 Max Kills in Single Turn 3 | 1 2 3 2 Gunslinging . | . . . . Exploded 3 | . 2 3 2 Melee 1 | . . 1 . Uniques/NPCs Destroyed . | . . . . Combat | -11 -10 -9 -8 -------- Run | Yrd Mat Mat Mat Hostile Shots Fired 320 | . 82 163 75 Missed 91 | . 27 42 22 Damage Taken 3193 | . 538 1680 975 Core 818 | . 123 382 313 Absorbed by Shields . | . . . . Core Remaining (%) 51 | 100 50 4 . Volleys Fired 234 | 1 67 124 42 Largest 2 | 2 2 2 2 Hottest 150 | 70 70 92 150 Shots Fired 433 | 2 131 233 67 Gun 381 | 2 128 219 32 Cannon 11 | . . . 11 Launcher 41 | . 3 14 24 Special . | . . . . Kinetic 290 | 1 64 193 32 Thermal 102 | 1 64 26 11 Explosive 6 | . 3 3 . Electromagnetic 35 | . . 11 24 Robot Hit Streak 26 | 2 13 26 10 Robot Miss Streak 7 | . 7 4 3 Penetration Max . | . . . . Secondary Targets 4 | . 3 1 . Max Gunslinging Chain 1 | . 1 1 . Shots Hit Robots 320 | 2 77 199 42 Core Hits 164 | 1 40 82 41 Critical Kills . | . . . . Critical Parts Destroyed 6 | . . 6 . Critical Strikes 13 | . 3 10 . Burn 5 | . 3 2 . Destroy 2 | . . 2 . Smash 6 | . . 6 . Melee Attacks 50 | . . 50 . Impact 50 | . . 50 . Slashing . | . . . . Piercing . | . . . . Sneak Attacks . | . . . . Combat Hostiles . | . . . . Follow-up Attacks . | . . . . Damage Inflicted 6826 | 24 1011 3835 1956 Guns 3031 | 24 892 1840 275 Cannons 150 | . . . 150 Explosions 2663 | . 119 1013 1531 Melee 982 | . . 982 . Ramming . | . . . . Kinetic 2206 | 12 411 1508 275 Thermal 1210 | 12 481 332 385 Explosive 578 | . 119 459 . Electromagnetic 1850 | . . 554 1296 Impact 982 | . . 982 . Slashing . | . . . . Piercing . | . . . . Highest Corruption 3 | . . . 3 Average Corruption 1 | . . . 1 Corruption Purged . | . . . . Corruption Blocked . | . . . . Effects 4 | . . . 4 Message Errors 1 | . . . 1 Matter Fused 3 | . . . 3 Overload Shots . | . . . . Overflow Damage 233 | . . 196 37 Projectiles . | . . . . Explosions 98 | . . 61 37 Melee 135 | . . 135 . Knockbacks 3 | . . 3 . Impact 3 | . . 3 . Kinetic . | . . . . Secondary . | . . . . Self-Inflicted Damage 112 | . . . 112 Shots 10 | . . . 10 Rammed . | . . . . Targets Rammed . | . . . . Kicked . | . . . . Crushed . | . . . . Highest Temperature 399 | 9 189 104 399 Average Temperature 54 | 6 44 28 158 Received Heat Transfer 1134 | . 165 591 378 Effects 1 | . . . 1 Energy Bleed 1 | . . . 1 Siege Activations . | . . . . Robots Corrupted 6 | . . 4 2 Combat Hostiles 6 | . . 4 2 Parts Fried 10 | . . 4 6 Impact Corruptions 8 | . . 8 . Robots Melted . | . . . . Combat Hostiles . | . . . . Parts Melted 3 | . 2 1 . Heat Transferred 3216 | 37 1558 999 622 Parts Sabotaged . | . . . . Parts Stolen . | . . . . Parts Stripped . | . . . . Power Chain Reactions 6 | . . . 6 Alert | -11 -10 -9 -8 ------- Run | Yrd Mat Mat Mat Peak Influence 650 | 5 334 457 650 Initial 113 | . 3 63 113 Average 261 | 1 151 279 374 Maximum Alert Level 2 | . 1 2 2 Low Security (%) 23 | 100 75 9 21 Level 1 72 | . 24 89 28 Level 2 4 | . . . 50 Level 3 . | . . . . Level 4 . | . . . . Level 5 . | . . . . High Security . | . . . . Max Security . | . . . . Squads Dispatched 10 | . 2 5 3 Investigation 4 | . . 3 1 Extermination . | . . . . Reinforcement 6 | . 2 2 2 Assault . | . . . . Garrison . | . . . . Intercept . | . . . . Searches Triggered . | . . . . Construction Impeded 2 | . . . 2 Haulers Reinforced . | . . . . Active Scanning Responses . | . . . . Cargo Convoy Interrupts . | . . . . Stealth | -11 -10 -9 -8 --------- Run | Yrd Mat Mat Mat Distress Signals 7 | . 1 4 2 Communications Jammed . | . . . . Distress Signals . | . . . . Times Spotted 106 | . 26 56 24 Peak Tracking Total 10 | . 3 10 7 Tactical Retreats 2 | . . 1 1 Traps | -11 -10 -9 -8 ------- Run | Yrd Mat Mat Mat Traps Triggered 6 | . . 6 . Indirectly . | . . . . Trap Hack Attempts . | . . . . Triggered . | . . . . Disarmed . | . . . . Reprogrammed . | . . . . Reused . | . . . . Traps Extracted . | . . . . Installed . | . . . . Triggered . | . . . . Machines | -11 -10 -9 -8 ---------- Run | Yrd Mat Mat Mat Machines Disabled 5 | . . 3 2 Max in Single Turn 2 | . . 1 2 Garrison Access 1 | . . . 1 Machines Repaired . | . . . . Machines Dismantled . | . . . . Machines Sabotaged . | . . . . Overloaded Fab Kills . | . . . . Hacking | -11 -10 -9 -8 --------- Run | Yrd Mat Mat Mat Machines Accessed 18 | . 5 10 3 Terminals 15 | . 5 8 2 Fabricators . | . . . . Repair Stations . | . . . . Recycling Units 2 | . . 2 . Scanalyzers . | . . . . Garrison Access 1 | . . . 1 Total Hacks 43 | . 12 24 7 Successful 18 | . 5 11 2 Failed 25 | . 7 13 5 Catastrophic 4 | . 2 2 . Database Lockouts . | . . . . Manual 35 | . 12 20 3 Terminals 38 | . 12 20 6 Fabricators . | . . . . Repair Stations . | . . . . Recycling Units 4 | . . 4 . Scanalyzers . | . . . . Garrison Access 1 | . . . 1 Terminal Hacks 6 | . 1 4 1 Level Access Points 1 | . . 1 . Branch Access Points 2 | . . 1 1 Unreport Threat 2 | . 1 1 . Zone Layout 1 | . . 1 . Fabricator Hacks . | . . . . Repair Station Hacks . | . . . . Recycling Unit Hacks 1 | . . 1 . Retrieve Components 1 | . . 1 . Scanalyzer . | . . . . Garrison Access Hacks 1 | . . . 1 Seal Access 1 | . . . 1 Unauthorized Hacks 10 | . 4 6 . Terminals 10 | . 4 6 . Track 1 | . . 1 . Botnet 7 | . 3 4 . Disrupt 1 | . . 1 . Operators 1 | . 1 . . Fabricators . | . . . . Repair Stations . | . . . . Recycling Units . | . . . . Scanalyzers . | . . . . Garrison Access . | . . . . Data Cores Recovered . | . . . . Used . | . . . . Hacking Detections 17 | . 5 10 2 Full Trace Events 4 | . 1 1 2 Feedback Events 1 | . . . 1 Corruption 1 | . . . 1 Feedback Blocked . | . . . . Robot Schematics Acquired . | . . . . Robots Built . | . . . . Authchips . | . . . . Time . | . . . . Total Robot Build Rating . | . . . . Part Schematics Acquired . | . . . . Parts Built . | . . . . Authchips . | . . . . Time . | . . . . Total Part Build Rating . | . . . . Parts Repaired . | . . . . Time . | . . . . Parts Recycled . | . . . . Recycled Matter . | . . . . Retrieved Matter . | . . . . Retrieved Components 9 | . . 9 . Parts Scanalyzed . | . . . . Part Schematics Acquired . | . . . . Parts Damaged . | . . . . Bothacking | -11 -10 -9 -8 ------------ Run | Yrd Mat Mat Mat Used RIF Installer . | . . . . Robots Hacked . | . . . . Non-combat . | . . . . Combat . | . . . . Robot Hacks Applied . | . . . . Relay Couplers Released . | . . . . Fabnet Peak Effective % . | . . . . Robots Rewired . | . . . . Allies Hacked . | . . . . Hacks Repelled . | . . . . Allies | -11 -10 -9 -8 -------- Run | Yrd Mat Mat Mat Total Allies . | . . . . Largest Group . | . . . . Highest-Rated Group . | . . . . Highest-Rated Ally . | . . . . Total Orders . | . . . . Ally Attacks . | . . . . Total Damage . | . . . . Kills . | . . . . Allies Corrupted . | . . . . Allies Melted . | . . . . Intel | -11 -10 -9 -8 ------- Run | Yrd Mat Mat Mat Robot Analysis Total . | . . . . Derelict Logs Recovered . | . . . . Drone Launches . | . . . . Drone Recoveries . | . . . . Exploration | -11 -10 -9 -8 ------------- Run | Yrd Mat Mat Mat Turns Passed 4519 | 68 774 3311 366 Spaces Moved 2424 | 40 414 1755 215 Core 127 | 31 . . 96 Treads 725 | . . 725 . Legs 1572 | 9 414 1030 119 Wheels . | . . . . Hover . | . . . . Flight . | . . . . Fastest Speed 50 | 50 120 120 50 Average Speed 141 | 83 129 151 101 Slowest Speed 330 | 120 190 330 190 Overloaded Moves . | . . . . Propulsion Burnouts . | . . . . Robots Hopped . | . . . . Cave-ins Triggered . | . . . . Exploration Rate (%) 54 | 4 91 89 33 Regions Visited 3 Branch Regions . Pre-discovered Areas . | . . . . Known Exits Taken 1 | . . 1 . Unknown Exits Taken 2 | 1 1 . . Scrap Searched . | . . . . Spaces Dug 5 | . 3 2 . Terrain Destroyed 77 | . 18 19 40 Melee 2 | . . 2 . Projectile 5 | . . . 5 AOE 70 | . 18 17 35 Terrain Rammed . | . . . . Walls Destroyed . | . . . . Machines Disabled . | . . . . Actions | -11 -10 -9 -8 --------- Run | Yrd Mat Mat Mat Total 3007 | 72 531 2108 296 Wait 128 | 17 21 80 10 Move 2421 | 39 413 1754 215 Hop . | . . . . Pick Up 63 | 9 10 37 7 Fast Attach 9 | 1 1 6 1 Attach 34 | 5 1 21 7 Detach . | . . . . Swap 31 | . 8 18 5 Drop 37 | . 10 18 9 Fire 234 | 1 67 124 42 Melee 50 | . . 50 . Ram . | . . . . Kick . | . . . . Crush . | . . . . Escape Stasis . | . . . . Rewire . | . . . . Trap . | . . . . Miscellaneous . | . . . . Route ------- -11/Scrapyard -10/Materials (discovered 5 exits: *Mat x3 / [*Min x2]) -9/Materials (discovered 5 exits: *Mat x3 / *Min x2) -8/Materials History --------- Turn | Location | Event 12 | -11/Scrapyard | Discovered new exit (range 16) 69 | -11/Scrapyard | Entered Materials 189 | -10/Materials | Discovered new exit (range 5) 302 | -10/Materials | Discovered new exit (range 14) 320 | -10/Materials | Build established: Mutant 465 | -10/Materials | Discovered new exit (range 10) 593 | -10/Materials | Discovered new exit (range 16) 701 | -10/Materials | Build established: Scavenger-Mutant 744 | -10/Materials | Discovered new exit (range 5) 843 | -10/Materials | Entered another Materials area 843 | -9/Materials | Evolved 2 slots: Propulsion x2 1163 | -9/Materials | Discovered new exit (range 13) 1258 | -9/Materials | Core integrity fell below 50% 1262 | -9/Materials | Destroyed 8 combat bots 1352 | -9/Materials | Lost 4 parts (3n1u) 1726 | -9/Materials | Core integrity fell below 20% 1777 | -9/Materials | Discovered new exit (range 16) 2173 | -9/Materials | Discovered new exit (range 16) 2493 | -9/Materials | Identified exit to Mines 2574 | -9/Materials | Discovered new exit (range 14) 3863 | -9/Materials | Build established: Mutant 4066 | -9/Materials | Identified exit to Materials 4154 | -9/Materials | Entered another Materials area 4154 | -8/Materials | Evolved 2 slots: Utility x2 4273 | -8/Materials | Build established: Scavenger-Mutant 4475 | -8/Materials | Core integrity fell below 50% 4496 | -8/Materials | Lost 6 parts (1p3n2w) 4520 | -8/Materials | Self-destructed Last Messages --------------- 04466_ U-05 Engineer lays Concrete. 04467_ K-01 Serf collects debris. 04467_ U-05 Engineer builds a Wall. 04468_ U-05 Engineer lays Concrete. 04468_ K-01 Serf collects debris. 04469_ U-05 Engineer lays Concrete. 04471_ U-05 Engineer builds a Wall. 04471_ U-05 Engineer lays Concrete. 04476_ R-06 Scavenger inserts Corrupted Lgt. Treads into recycling unit. 04480_ Recycling unit begins recycling process. 04495_ Slug penetrates Wall. 04495_ Hadron Collector disabled. 04512_ K-01 Serf cleans the Garrison Access. 04514_ Connecting with Garrison Access... >>Seal Access door sealed. 04520_ Connecting with Terminal... >>Access(Branch) No branch access points found. Map ----- +----------------------------------------------------+ | ???????????????????????# "Y # #??????###### | | ???????????????????????# "" # ^ #??????# = | | ???????????????????????# # #??????#! | | ??????????????????##########+## ######## | | ??????????????????# # / """ | | ??????????????????# """ # #### ######## """ | | ??????????????????# """ # #####+#####???# """ | | ??????????????????# "" + ## #???# | | ??????????????????# """ # ## """"" #???# ] | | ??????????????????# # ## """"" #???###### | | ??????????????????######## ## """"" #????????? | | ?????????????????????????# ## """"" #????????? | | ?????????????????????????# ## """"" #????????? | | ?????????????????????????# ##! """"???????????? | | ??????????????????######## ## """"???????????? | | ??????????????????# # ## ????????????? | | ??????????????????#* """ # #######????????????? | | ??????????????????# "G" + #??????????????????? | | ??????????????????# " " # #??????????????????? | | ??????????????????#= # #??????????????????? | | ??????????????????# ! # #??????????????????? | | ??????????????????######## #??????????????????? | | ??????????????????# ! + #??????????????????? | | ??????????????????# ! # #??????????????????? | | ??????????????????# # #??????????????????? | | ??????????????????# @ # #??????????????????? | | ??????????????????# "T" # #??????????????????? | | ??????????????????# # #??????????????????? | | ??????????????????######## #??????????????????? | | ?????????????????????????# #??????????????????? | | ?????????????????????????# #?????????#####+#### | | ?????????????????????????? ????????# | | ?????????????????????????? ????????# | | ?????????????????????????? ????????# | | ?????????????????????????? ????????# | | ?????????????????????????? ????????# """ "" | | ?????????????????????????? ????????# """ "" | | ?????????????????????????? ????????# """ "" | | ???????????????????????????????????# | | ???????????????????????????????????# | | ???????????????????????????????????? """ "" | | ??????????????????????????????????????? """ "" | | ??????????????????????????????????????? """ "" | | ???????????????????????????????????# | | ???????????????????????????????????# | | ???????????????????????????????????# ###### | | ???????????????????????????????????###???# | | ?????????????????????????????????????????# | | ?????????????????????????????????????????# | | ?????????????????????????????????????????# !! | +----------------------------------------------------+ Best States ------------- Heat Dissipation 31 Energy Generation 14 Energy Capacity 280 Matter Stores 300 Matter Capacity 300 Sight Range 16 Terrain Scan Density 10 Evasion (%) 55 Targeting Accuracy 8 Recoil Reduction 3 Offensive Hacking 30 Item Schematics ----------------- None Robot Schematics ------------------ None Fabricated ------------ Nothing Alien Tech Used ----------------- None Achievements -------------- None Challenges ------------ None Game ------ Seed CoolantWardroneSuit Manual? 0 Play Time 00:30:05 Cumulative 230.9 hours Start 2024.08.17 @ 16:50:38 End 2024.08.17 @ 17:21:29 Sessions 1 Manual Loads 0 Difficulty Rogue Special Mode None Game No. 98 Rogue 84 Adventurer 14 Explorer 0 Win Type - Total 16 Types 13/0/1/1/0/0/0/0/1 Lore% 46 Gallery% 74 Achievement% 66 Wizard Run 0 Options --------- Layout 1 ASCII 0 Keyboard 0 Movement Mouse Keybinds 0 Fullscreen 1 Font 20/SmallcapsGlow Map View 50x35 Zoom Use 0% Tactical HUD 1 Map Filters NONE Filters NONE Steam 1 RUN: f101341c-1c44-42a3-b3a8-500af74a4cd2